bitfinex/quotes_BTCUSD_20240721
["timestamp","ask_amount","ask_price","bid_price","bid_amount"]
[1721544724577,0.00084,66825.0,66824.0,1.03038707]
[1721544724783,0.00084,66825.0,66824.0,1.28856881]
[1721544725377,0.00184,66825.0,66824.0,1.29556881]
[1721544725805,0.00184,66825.0,66824.0,1.28856881]
[1721544726006,0.00284,66825.0,66824.0,1.29556881]
[1721544726209,0.00284,66825.0,66824.0,1.36206881]
[1721544726623,0.00284,66825.0,66824.0,1.36306881]
[1721544726830,0.00284,66825.0,66824.0,1.39100487]
[1721544727572,0.00284,66825.0,66824.0,1.39098351]
[1721544728479,0.00084,66825.0,66824.0,1.37898351]
[1721544728672,0.00084,66825.0,66824.0,1.76841751]
[1721544728885,0.00284,66825.0,66824.0,1.78741751]
[1721544729289,0.00184,66825.0,66824.0,1.78041751]
[1721544729495,0.00084,66825.0,66824.0,1.76841751]
[1721544729700,0.00084,66825.0,66824.0,1.77541751]
[1721544729701,0.00184,66825.0,66824.0,1.77541751]
[1721544729929,0.00284,66825.0,66824.0,1.78941751]
[1721544730427,0.00384,66825.0,66824.0,1.80341751]
[1721544730673,0.00384,66825.0,66824.0,1.80341099]
[1721544731088,0.00284,66825.0,66824.0,1.79641099]
[1721544731294,0.00384,66825.0,66824.0,1.81041099]
[1721544732566,0.00284,66825.0,66824.0,1.79641099]
[1721544732798,0.00384,66825.0,66824.0,1.74131099]
[1721544733009,0.00184,66825.0,66824.0,1.78141099]
[1721544733217,0.00184,66825.0,66824.0,1.75347493]
[1721544733695,0.00184,66825.0,66824.0,1.75346911]
[1721544734634,0.00284,66825.0,66824.0,1.76746911]
[1721544739518,0.00284,66825.0,66824.0,1.71746911]
[1721544740354,0.00284,66825.0,66824.0,1.87181868]
[1721544741471,0.00284,66825.0,66824.0,1.92181868]
[1721544741921,0.00284,66825.0,66824.0,1.92281868]
[1721544743265,0.00284,66825.0,66824.0,1.92282003]
[1721544743698,0.00284,66825.0,66824.0,1.68238603]
[1721544745820,0.00284,66825.0,66824.0,1.60658603]
[1721544746281,0.00284,66825.0,66824.0,1.41425031]
[1721544746490,0.00284,66825.0,66824.0,1.60659135]
[1721544748435,0.00284,66825.0,66824.0,1.77023243]
[1721544749547,0.00284,66825.0,66824.0,1.77015798]
[1721544751097,0.00284,66825.0,66824.0,1.70365798]
[1721544751714,0.00284,66825.0,66824.0,1.70458198]
[1721544752335,0.00284,66825.0,66824.0,1.75458198]
[1721544752762,0.00284,66825.0,66824.0,1.75469194]
[1721544753859,0.08394,66825.0,66824.0,1.70469194]
[1721544754066,0.00284,66825.0,66824.0,1.70469194]
[1721544754271,0.00284,66825.0,66824.0,1.76489194]
[1721544755300,0.00284,66825.0,66824.0,1.70469194]
[1721544755518,0.08394,66825.0,66824.0,1.24280837]
[1721544755745,0.14554,66825.0,66824.0,0.66055674]
[1721544755997,0.14554,66825.0,66824.0,0.78480854]
[1721544756429,0.14454,66825.0,66824.0,0.77080854]
[1721544757070,0.14454,66825.0,66824.0,0.79080854]
[1721544757507,0.14454,66825.0,66824.0,0.79380854]
[1721544757920,0.14454,66825.0,66824.0,0.80480854]
[1721544757921,0.14554,66825.0,66824.0,0.80480854]
[1721544758580,0.14554,66825.0,66824.0,1.04424254]
[1721544760373,0.14554,66825.0,66824.0,1.42847799]
[1721544760613,0.00284,66825.0,66824.0,1.42847799]
[1721544760932,0.00284,66825.0,66824.0,1.59361587]
[1721544761152,0.00284,66825.0,66824.0,1.59261587]
[1721544761616,0.00284,66825.0,66824.0,1.74361587]
[1721544762158,0.00284,66825.0,66824.0,1.57946528]
[1721544762369,0.00284,66825.0,66824.0,1.74369502]
[1721544764140,0.00284,66825.0,66824.0,1.98312902]
[1721544764498,0.00284,66825.0,66824.0,1.99191615]
[1721544765113,0.00284,66825.0,66824.0,1.70344732]
[1721544765314,0.00284,66825.0,66824.0,1.99191485]
[1721544768573,0.00284,66825.0,66824.0,2.05182186]
[1721544770032,0.00284,66825.0,66824.0,1.46301332]
[1721544770455,0.00284,66825.0,66824.0,1.7520057]
[1721544770864,0.00284,66825.0,66824.0,1.7510057]
[1721544772096,0.00284,66825.0,66824.0,1.75139946]
[1721544774604,0.00284,66825.0,66824.0,1.75239946]
[1721544775194,0.00284,66825.0,66824.0,1.75254719]
[1721544775598,0.00284,66825.0,66824.0,1.89174719]
[1721544776028,0.00284,66825.0,66824.0,2.13118119]
[1721544777754,0.00284,66825.0,66824.0,2.13093106]
[1721544778613,0.00284,66825.0,66824.0,2.13096965]
[1721544778814,0.00284,66825.0,66824.0,1.75233565]
[1721544781068,0.00284,66825.0,66824.0,1.46401332]
[1721544781307,0.00284,66825.0,66824.0,1.99186145]
[1721544781934,0.00284,66825.0,66824.0,1.75242745]
[1721544782144,0.00284,66825.0,66824.0,1.75240072]
[1721544782681,0.00284,66825.0,66824.0,1.99183472]
[1721544784133,0.00284,66825.0,66824.0,1.70344732]
[1721544784337,0.00284,66825.0,66824.0,1.9919307]
[1721544787422,0.00284,66825.0,66824.0,1.99192606]
[1721544790470,0.00284,66825.0,66824.0,1.70344732]
[1721544790700,0.00284,66825.0,66824.0,1.99203237]
[1721544792429,0.00284,66825.0,66824.0,2.13303237]
[1721544793566,0.00284,66825.0,66824.0,2.28832866]
[1721544793758,0.00284,66825.0,66824.0,1.99974361]
[1721544793953,0.00284,66825.0,66824.0,2.66874388]
[1721544794246,0.00284,66825.0,66824.0,2.90817788]
[1721544794454,0.00184,66825.0,66824.0,2.89417788]
[1721544794669,0.00084,66825.0,66824.0,2.88317788]
[1721544794884,0.00084,66825.0,66824.0,2.89717788]
[1721544795115,0.00084,66825.0,66824.0,2.63529258]
[1721544795297,0.00184,66825.0,66824.0,2.63529258]
[1721544795536,0.00084,66825.0,66824.0,2.53156576]
[1721544795741,0.00084,66825.0,66824.0,2.54556576]
[1721544795950,0.00184,66825.0,66824.0,2.55956576]
[1721544796567,0.00184,66825.0,66824.0,2.79899976]
[1721544796823,0.00184,66825.0,66824.0,2.53092392]
[1721544797028,0.00084,66847.0,66824.0,2.53092392]
[1721544797029,0.00084,66847.0,66846.0,0.59839]
[1721544797229,0.00084,66847.0,66846.0,0.96809675]
[1721544797436,0.00084,66847.0,66846.0,1.13269181]
[1721544797643,0.00084,66847.0,66846.0,1.2593247]
[1721544798061,0.08064,66847.0,66846.0,1.2593247]
[1721544798494,0.08064,66847.0,66846.0,1.2633247]
[1721544798943,0.14164,66847.0,66846.0,1.2633247]
[1721544799149,0.14164,66847.0,66846.0,1.2683247]
[1721544799984,0.14164,66847.0,66846.0,1.26830871]
[1721544800414,0.14164,66847.0,66846.0,1.26830879]
[1721544803800,0.14164,66847.0,66846.0,0.90898084]
[1721544804010,0.14164,66847.0,66846.0,0.97708084]
[1721544806119,0.14164,66847.0,66846.0,0.85287174]
[1721544806326,0.14164,66847.0,66846.0,0.97708253]
[1721544807585,0.14164,66847.0,66846.0,0.90898253]
[1721544807804,0.14164,66847.0,66846.0,0.97708253]
[1721544809295,0.14164,66847.0,66846.0,0.85287174]
[1721544809501,0.14164,66847.0,66846.0,0.97708242]
[1721544811254,0.14164,66847.0,66846.0,1.09872756]
[1721544812718,0.14164,66847.0,66846.0,1.09872779]
[1721544815696,0.14164,66847.0,66846.0,1.09872873]
[1721544820625,0.14164,66847.0,66846.0,1.03062873]
[1721544820820,0.14164,66847.0,66846.0,0.97708359]
[1721544825208,0.14164,66847.0,66846.0,0.97708448]
[1721544826810,0.19064,66847.0,66846.0,0.97708448]
[1721544826946,0.19064,66847.0,66846.0,0.13321274]
[1721544826947,0.310316,66847.0,66846.0,0.13321274]
[1721544827146,0.19064,66847.0,66846.0,0.13321274]
[1721544828081,0.19064,66847.0,66846.0,0.12921274]
[1721544828284,0.19064,66847.0,66845.0,0.0681]
[1721544828285,0.19464,66847.0,66845.0,0.0681]
[1721544828544,0.19724,66847.0,66846.0,0.12423049]
[1721544828754,0.19324,66847.0,66846.0,0.12423049]
[1721544828994,0.19224,66847.0,66846.0,0.12423049]
[1721544829198,0.19324,66847.0,66846.0,0.12423049]
[1721544829650,0.19624,66847.0,66846.0,0.12423049]
[1721544830475,0.19524,66847.0,66846.0,0.24390849]
[1721544830685,0.19524,66847.0,66846.0,0.24590849]
[1721544830888,0.19224,66847.0,66846.0,0.24590849]
[1721544831605,0.19224,66847.0,66846.0,0.30124336]
[1721544832983,0.14324,66847.0,66846.0,0.30124336]
[1721544833198,0.19224,66847.0,66846.0,0.30124336]
[1721544833602,0.14324,66847.0,66846.0,0.30124336]
[1721544834522,0.19224,66847.0,66846.0,0.30124336]
[1721544834732,0.19224,66847.0,66846.0,0.30124194]
[1721544837896,0.19224,66847.0,66846.0,0.17701505]
[1721544838096,0.19224,66847.0,66846.0,0.30124204]
[1721544838319,0.19224,66847.0,66846.0,0.36934204]
[1721544838730,0.19224,66847.0,66846.0,0.31400499]
[1721544840733,0.19224,66847.0,66846.0,0.189778]
[1721544840931,0.19224,66847.0,66846.0,0.3140064]
[1721544842134,0.19224,66847.0,66846.0,0.189778]
[1721544842339,0.19224,66847.0,66846.0,0.3140064]
[1721544842995,0.19224,66847.0,66846.0,0.1943284]
[1721544846790,0.19224,66847.0,66846.0,0.19432869]
[1721544848921,0.19224,66847.0,66846.0,0.0701]
[1721544849121,0.19224,66847.0,66846.0,0.19432869]
[1721544852225,0.14324,66847.0,66846.0,0.19432869]
[1721544853182,0.14324,66847.0,66846.0,0.36934366]
[1721544853389,0.14324,66847.0,66846.0,0.36934293]
[1721544854776,0.19224,66847.0,66846.0,0.36934293]
[1721544855592,0.19224,66847.0,66846.0,0.31400596]
[1721544856475,0.19224,66847.0,66846.0,0.31400644]
[1721544857345,0.00084,66847.0,66846.0,0.45170644]
[1721544857528,0.00084,66847.0,66846.0,0.79271844]
[1721544857732,0.00084,66847.0,66846.0,1.27949802]
[1721544857933,0.00084,66847.0,66846.0,1.30249802]
[1721544859431,0.00084,66847.0,66846.0,1.17826958]
[1721544859633,0.00084,66847.0,66846.0,1.30248527]
[1721544860408,0.00084,66847.0,66846.0,1.30048527]
[1721544860739,0.00084,66847.0,66846.0,1.30348527]
[1721544861146,0.00084,66847.0,66846.0,1.30448527]
[1721544862674,0.00084,66847.0,66846.0,1.30448587]
[1721544863097,0.00084,66847.0,66846.0,0.12821629]
[1721544863098,0.18864,66847.0,66846.0,0.12821629]
[1721544863302,0.308316,66847.0,66846.0,0.12821629]
[1721544863500,0.547668,66847.0,66846.0,0.12821629]
[1721544863700,0.59219292,66847.0,66846.0,0.12821629]
[1721544863913,0.59219292,66847.0,66846.0,0.12421629]
[1721544864317,0.59619292,66847.0,66846.0,0.12421629]
[1721544864993,0.551668,66847.0,66846.0,0.12421629]
[1721544865362,0.59619292,66847.0,66846.0,0.12421629]
[1721544865571,0.59219292,66847.0,66846.0,0.12421629]
[1721544865975,0.59619423,66847.0,66846.0,0.12421629]
[1721544866363,0.1106,66841.0,66840.0,0.119687]
[1721544866539,0.1878,66841.0,66840.0,0.24391971]
[1721544867661,0.1878,66841.0,66840.0,0.12823271]
[1721544869093,0.1878,66841.0,66840.0,0.12823332]
[1721544872552,0.546861,66841.0,66840.0,0.12823332]
[1721544872754,0.61367281,66841.0,66840.0,0.12823332]
[1721544872957,0.61367281,66841.0,66840.0,0.004]
[1721544873316,0.546861,66841.0,66840.0,0.003]
[1721544873725,0.547861,66841.0,66840.0,0.003]
[1721544873932,0.049,66835.0,66834.0,0.0681]
[1721544874138,0.049,66835.0,66834.0,0.19234537]
[1721544874139,0.126,66835.0,66834.0,0.19234537]
[1721544874997,0.126,66835.0,66834.0,0.12424537]
[1721544875202,0.126,66835.0,66834.0,0.19234537]
[1721544875417,0.126,66835.0,66834.0,0.19934537]
[1721544876056,0.077,66835.0,66834.0,0.31904437]
[1721544876266,0.077,66835.0,66834.0,0.37488991]
[1721544876467,0.077,66835.0,66834.0,0.61428891]
[1721544876670,0.049,66838.0,66837.0,0.359082]
[1721544876873,0.049,66838.0,66837.0,0.55142737]
[1721544877288,0.049,66838.0,66837.0,0.63766284]
[1721544878164,0.049,66838.0,66837.0,0.64166284]
[1721544878728,0.0445216,66842.0,66839.0,0.239381]
[1721544878951,0.002794,66841.0,66840.0,0.12424413]
[1721544879148,0.126,66845.0,66843.0,0.119683]
[1721544879360,0.126,66845.0,66844.0,0.0681]
[1721544879921,0.126,66845.0,66844.0,0.187781]
[1721544880127,0.126,66845.0,66844.0,0.187821]
[1721544881897,0.126,66845.0,66844.0,0.190821]
[1721544882138,0.126,66845.0,66844.0,0.122721]
[1721544882343,0.1942,66845.0,66844.0,0.00404]
[1721544882759,0.19104,66845.0,66844.0,0.00304]
[1721544886746,0.85620826,66845.0,66844.0,0.00304]
[1721544887196,0.84656031,66845.0,66844.0,0.00304]
[1721544887740,0.84656031,66845.0,66844.0,4e-05]
[1721544887945,0.789437,66845.0,66844.0,4e-05]
[1721544888143,0.84654438,66845.0,66844.0,4e-05]
[1721544888343,0.789437,66845.0,66844.0,4e-05]
[1721544888548,0.84638733,66845.0,66844.0,4e-05]
[1721544888977,0.84638733,66845.0,66844.0,0.00104]
[1721544889179,0.85038733,66845.0,66844.0,0.00104]
[1721544889379,0.793437,66845.0,66844.0,0.00104]
[1721544889629,0.98234552,66845.0,66844.0,0.00104]
[1721544890608,1.09362237,66845.0,66844.0,0.00104]
[1721544890812,1.09362237,66845.0,66844.0,0.001]
[1721544890813,0.98234552,66845.0,66844.0,0.001]
[1721544891215,0.92543929,66845.0,66844.0,0.001]
[1721544891417,0.98003355,66845.0,66844.0,0.001]
[1721544891992,1.09129323,66845.0,66844.0,0.001]
[1721544892199,0.84803126,66845.0,66844.0,0.001]
[1721544892404,0.793437,66845.0,66844.0,0.001]
[1721544892607,0.83793669,66845.0,66844.0,0.001]
[1721544892983,0.793437,66845.0,66844.0,0.001]
[1721544893522,0.86018429,66845.0,66844.0,0.001]
[1721544893683,0.85966816,66845.0,66844.0,0.001]
[1721544893941,0.79292087,66845.0,66844.0,0.001]
[1721544895850,0.79292087,66845.0,66844.0,0.00104]
[1721544897290,0.85967796,66845.0,66844.0,0.00104]
[1721544898585,0.26128096,66845.0,66844.0,0.00104]
[1721544898789,0.23902853,66845.0,66844.0,0.0438602]
[1721544898994,0.23902853,66845.0,66844.0,0.00104]
[1721544899411,0.19452387,66845.0,66844.0,0.00104]
[1721544900404,0.19052387,66845.0,66844.0,4e-05]
[1721544900744,0.19052387,66845.0,66844.0,0.00104]
[1721544901163,0.19452387,66845.0,66844.0,0.00104]
[1721544901368,0.19452387,66845.0,66844.0,4e-05]
[1721544902208,0.19852387,66845.0,66844.0,4e-05]
[1721544902825,0.19852387,66845.0,66843.0,0.119682]
[1721544902987,0.049,66836.0,66835.0,0.119697]
[1721544903189,0.049,66836.0,66835.0,0.48333451]
[1721544903393,0.1302,66836.0,66835.0,0.48333451]
[1721544904625,0.049,66836.0,66835.0,0.55560866]
[1721544904847,0.049,66836.0,66835.0,0.55960866]
[1721544906426,0.049,66836.0,66835.0,0.56660934]
[1721544906633,0.049,66836.0,66835.0,0.55960934]
[1721544906845,0.049,66836.0,66835.0,0.56460934]
[1721544907057,0.049,66836.0,66835.0,0.56060934]
[1721544907320,0.049,66836.0,66835.0,0.55560934]
[1721544907532,0.049,66836.0,66835.0,0.56060934]
[1721544908345,0.1936,66836.0,66835.0,0.49033519]
[1721544908546,0.1936,66836.0,66835.0,0.25094019]
[1721544908751,0.049,66836.0,66835.0,0.25294019]
[1721544908953,0.049,66836.0,66835.0,0.33292461]
[1721544909189,0.049,66836.0,66835.0,0.57231961]
[1721544909603,0.049,66836.0,66835.0,0.57232194]
[1721544910249,0.1936,66836.0,66835.0,0.13324552]
[1721544912670,0.1936,66836.0,66835.0,0.009]
[1721544912819,0.1936,66836.0,66835.0,0.13324828]
[1721544914428,0.1642392,66838.0,66835.0,0.13324828]
[1721544914429,0.0445472,66838.0,66836.0,0.119695]
[1721544914632,0.0445472,66838.0,66837.0,0.12424828]
[1721544915590,0.0935472,66838.0,66837.0,0.24394228]
[1721544915967,0.0935472,66838.0,66837.0,0.24394149]
[1721544915968,0.09355147,66838.0,66837.0,0.24394149]
[1721544916165,0.049,66842.0,66841.0,0.119687]
[1721544916366,0.14435401,66842.0,66841.0,0.119687]
[1721544916532,0.19335401,66842.0,66841.0,0.119687]
[1721544918039,0.19735401,66842.0,66841.0,0.119687]
[1721544919086,0.19741553,66842.0,66841.0,0.119687]
[1721544919661,0.11983805,66842.0,66841.0,0.24393438]
[1721544922165,0.053,66842.0,66841.0,0.24393438]
[1721544922388,0.11583593,66842.0,66841.0,0.24392975]
[1721544922594,0.049,66842.0,66841.0,0.119687]
[1721544922798,0.19701072,66842.0,66841.0,0.12424275]
[1721544923624,0.19301072,66842.0,66841.0,0.12424275]
[1721544923911,0.34221072,66842.0,66841.0,0.12424275]
[1721544925443,0.3422144,66842.0,66841.0,0.12424278]
[1721544926544,0.34221767,66842.0,66841.0,0.12424278]
[1721544927089,0.27537479,66842.0,66841.0,0.12424278]
[1721544927527,0.1982,66842.0,66841.0,0.12424278]
[1721544928752,0.1982,66842.0,66839.0,0.11969]
[1721544928904,0.1982,66842.0,66840.0,0.1242428]
[1721544929111,0.049,66840.0,66839.0,0.11969]
[1721544929312,0.049,66840.0,66839.0,0.1242428]
[1721544929514,0.1942,66840.0,66839.0,0.1242428]
[1721544929918,0.313888,66840.0,66839.0,0.1242428]
[1721544930660,0.1942,66840.0,66839.0,0.1242428]
[1721544931143,0.1313,66840.0,66839.0,0.1242428]
[1721544931380,0.19814967,66840.0,66839.0,0.1242428]
[1721544931531,0.1313,66840.0,66839.0,0.1242428]
[1721544931748,0.1313,66840.0,66839.0,0.01264504]
[1721544932088,0.1313,66840.0,66839.0,0.1242454]
[1721544932288,0.18774118,66840.0,66839.0,0.1242454]
[1721544932425,0.1313,66840.0,66839.0,0.13687015]
[1721544932611,0.18775627,66840.0,66839.0,0.1242454]
[1721544932807,0.1313,66840.0,66839.0,0.13687006]
[1721544933878,0.18776447,66840.0,66839.0,0.13687006]
[1721544935034,0.18766251,66840.0,66839.0,0.13687032]
[1721544936491,1.01283609,66840.0,66839.0,0.13687032]
[1721544936654,0.8939913,66840.0,66835.0,0.000924]
[1721544936857,0.310495,66836.0,66835.0,0.000924]
[1721544937059,0.36399183,66836.0,66835.0,0.12517706]
[1721544937261,0.36399183,66836.0,66835.0,0.13782361]
[1721544938144,0.310495,66836.0,66835.0,0.01857055]
[1721544938342,0.35914886,66836.0,66835.0,0.13017893]
[1721544939142,0.310495,66836.0,66835.0,0.13017893]
[1721544939726,0.310495,66836.0,66835.0,0.13217893]
[1721544941183,0.37733699,66836.0,66835.0,0.13217893]
[1721544941404,0.37733637,66836.0,66835.0,0.007924]
[1721544941609,0.37733637,66836.0,66835.0,0.13217893]
[1721544944804,0.37732709,66836.0,66835.0,0.13217893]
[1721544946915,0.310495,66836.0,66835.0,0.13217893]
[1721544947677,0.310495,66836.0,66835.0,0.007924]
[1721544947885,0.37732471,66836.0,66835.0,0.13217695]
[1721544948292,0.310495,66836.0,66835.0,0.1448264]
[1721544948491,0.37732471,66836.0,66835.0,0.1448264]
[1721544949060,0.310495,66836.0,66835.0,0.1448264]
[1721544949191,0.37732471,66836.0,66835.0,0.1448264]
[1721544950188,0.61671571,66836.0,66835.0,0.1448264]
[1721544950330,0.85610671,66836.0,66835.0,0.13217695]
[1721544950908,0.789277,66836.0,66835.0,0.007924]
[1721544951103,0.85610362,66836.0,66835.0,0.13217891]
[1721544952766,0.789277,66836.0,66835.0,0.13217891]
[1721544952969,0.789277,66836.0,66835.0,0.007924]
[1721544952970,1.1831047,66836.0,66835.0,0.007924]
[1721544953237,1.40940175,66836.0,66835.0,0.007924]
[1721544953462,1.76317449,66836.0,66835.0,0.007924]
[1721544953665,1.95154732,66836.0,66835.0,0.007924]
[1721544953866,1.80439614,66836.0,66835.0,0.007924]
[1721544954031,2.13554414,66836.0,66835.0,0.005924]
[1721544954232,1.98522034,66836.0,66835.0,0.005924]
[1721544954431,1.98522034,66836.0,66835.0,0.000924]
[1721544954641,1.98522034,66836.0,66835.0,0.001924]
[1721544954842,1.98922034,66836.0,66835.0,0.002924]
[1721544955821,1.98922034,66836.0,66835.0,0.001924]
[1721544955822,1.98522034,66836.0,66835.0,0.001924]
[1721544956229,1.94082195,66836.0,66835.0,0.002924]
[1721544956974,1.94005407,66836.0,66835.0,0.002924]
[1721544958228,1.97795334,66836.0,66835.0,0.002924]
[1721544959248,1.84458686,66836.0,66835.0,0.002924]
[1721544960285,1.8033782,66836.0,66835.0,0.002924]
[1721544960703,1.8533782,66836.0,66835.0,0.002924]
[1721544962608,1.85274585,66836.0,66835.0,0.002924]
[1721544962845,1.85274625,66836.0,66835.0,0.002924]
[1721544963064,1.81718748,66836.0,66835.0,0.002924]
[1721544963275,1.90274616,66836.0,66835.0,0.002924]
[1721544964355,0.93697,66828.0,66827.0,0.04958482]
[1721544964559,1.49570747,66828.0,66827.0,0.04958482]
[1721544964758,0.598567,66826.0,66824.0,0.050924]
[1721544964969,1.13820447,66826.0,66824.0,0.050924]
[1721544965211,1.24564743,66826.0,66824.0,0.050924]
[1721544965859,1.47844016,66826.0,66824.0,0.050924]
[1721544966097,1.38844016,66826.0,66824.0,0.050924]
[1721544966295,1.65749207,66826.0,66824.0,0.050924]
[1721544966831,1.57149207,66826.0,66824.0,0.050924]
[1721544967289,1.46054016,66826.0,66824.0,0.050924]
[1721544967824,1.55054016,66826.0,66824.0,0.050924]
[1721544969096,1.55053544,66826.0,66824.0,0.050924]
[1721544969297,1.63924943,66826.0,66824.0,0.050924]
[1721544970730,1.64840496,66826.0,66824.0,0.050924]
[1721544971347,1.55969097,66826.0,66824.0,0.050924]
[1721544971543,1.64840496,66826.0,66824.0,0.050924]
[1721544972151,1.5598333,66826.0,66824.0,0.050924]
[1721544972409,1.4698333,66826.0,66824.0,0.050924]
[1721544972998,1.5598333,66826.0,66824.0,0.050924]
[1721544973201,1.53077128,66826.0,66824.0,0.050924]
[1721544974106,1.55979294,66826.0,66824.0,0.050924]
[1721544974306,1.53077128,66826.0,66824.0,0.050924]
[1721544975862,1.46267128,66826.0,66824.0,0.050924]
[1721544976068,1.46257423,66826.0,66824.0,0.050924]
[1721544977537,1.50691899,66826.0,66824.0,0.050924]
[1721544977906,1.5069185,66826.0,66824.0,0.050924]
[1721544978276,1.46257423,66826.0,66824.0,0.050924]
[1721544978679,1.50692048,66826.0,66824.0,0.050924]
[1721544980495,1.39447423,66826.0,66824.0,0.050924]
[1721544980696,1.46257423,66826.0,66824.0,0.050924]
[1721544981319,1.5972904,66826.0,66824.0,0.050924]
[1721544981548,1.53077147,66826.0,66824.0,0.050924]
[1721544983005,1.59730551,66826.0,66824.0,0.050924]
[1721544984115,1.59731517,66826.0,66824.0,0.050924]
[1721544984723,1.59732327,66826.0,66824.0,0.050924]
[1721544984945,1.53077147,66826.0,66824.0,0.050924]
[1721544985181,1.59732331,66826.0,66824.0,0.050924]
[1721544986364,1.53077147,66826.0,66824.0,0.050924]
[1721544987120,1.56201475,66826.0,66824.0,0.050924]
[1721544987722,1.53077147,66826.0,66824.0,0.050924]
[1721544987918,1.56221766,66826.0,66824.0,0.050924]
[1721544988156,1.65105195,66826.0,66824.0,0.050924]
[1721544988587,1.56221766,66826.0,66824.0,0.050924]
[1721544988927,1.65105195,66826.0,66824.0,0.050924]
[1721544990481,1.6105953,66826.0,66824.0,0.050924]
[1721544991106,1.61022971,66826.0,66824.0,0.050924]
[1721544991317,1.72112368,66826.0,66824.0,0.050924]
[1721544992701,0.239438,66823.0,66805.0,0.077296]
[1721544992909,0.239438,66823.0,66806.0,0.26704858]
[1721544992910,0.049,66807.0,66806.0,0.26704858]
[1721544993107,0.049,66807.0,66806.0,0.51940944]
[1721544993513,0.049,66808.0,66807.0,0.119747]
[1721544993730,0.049,66808.0,66807.0,0.50654158]
[1721544994014,0.049,66810.0,66808.0,0.119746]
[1721544994224,0.002794,66809.0,66808.0,0.119746]
[1721544994430,0.002794,66810.0,66809.0,0.01284616]
[1721544994629,0.002794,66810.0,66809.0,0.14729834]
[1721544994828,0.002794,66810.0,66809.0,0.2798885]
[1721544995637,0.002794,66810.0,66809.0,0.7588645]
[1721544995842,0.049,66815.0,66814.0,0.0454]
[1721544996016,0.049,66815.0,66814.0,0.31243334]
[1721544996379,0.04727991,66819.0,66814.0,0.31243334]
[1721544996380,0.002794,66816.0,66815.0,0.644067]
[1721544996586,0.13797183,66821.0,66820.0,0.404573]
[1721544996587,0.04448591,66821.0,66820.0,0.404573]
[1721544996791,0.08897183,66825.0,66824.0,0.0454]
[1721544996792,0.04452127,66825.0,66824.0,0.0454]
[1721544996991,0.11284888,66825.0,66824.0,0.256217]
[1721544997232,0.04452127,66826.0,66825.0,0.165115]
[1721544997432,0.0667793,66828.0,66827.0,0.119711]
[1721544997433,0.051794,66828.0,66827.0,0.119711]
[1721544997643,0.11730935,66828.0,66827.0,0.142711]
[1721544997845,0.18411337,66828.0,66827.0,0.15616756]
[1721544998282,0.08840131,66828.0,66827.0,0.15616756]
[1721544998695,0.05,66828.0,66827.0,0.15616756]
[1721544999095,0.001,66828.0,66827.0,0.22426756]
[1721544999410,0.001,66828.0,66827.0,0.87278154]
[1721545000005,0.002794,66831.0,66830.0,0.119706]
[1721545000224,0.002794,66831.0,66830.0,0.188106]
[1721545000425,0.002794,66832.0,66831.0,0.119704]
[1721545000627,0.002794,66832.0,66831.0,0.142704]
[1721545000828,0.051794,66832.0,66831.0,0.15644251]
[1721545001040,0.049,66832.0,66831.0,0.15644251]
[1721545001591,0.001,66832.0,66831.0,0.15644251]
[1721545001792,0.003794,66832.0,66831.0,0.15644251]
[1721545001996,0.001,66832.0,66831.0,0.15744251]
[1721545002193,0.003794,66832.0,66831.0,0.15744251]
[1721545002399,0.006,66832.0,66831.0,0.15744251]
[1721545002598,0.055,66832.0,66831.0,0.15744251]
[1721545003406,0.054,66832.0,66831.0,0.15744251]
[1721545003621,0.055,66832.0,66831.0,0.15744251]
[1721545004009,0.05,66832.0,66831.0,0.15644251]
[1721545004214,0.04946067,66832.0,66831.0,0.15644251]
[1721545004414,0.006,66832.0,66831.0,0.15644251]
[1721545005862,0.05446067,66832.0,66831.0,0.15644251]
[1721545007064,0.04846067,66832.0,66831.0,0.15644251]
[1721545007406,0.05346067,66832.0,66831.0,0.15644251]
[1721545008577,0.005,66832.0,66831.0,0.20184251]
[1721545009191,0.05346067,66832.0,66831.0,0.20184251]
[1721545010237,0.05346067,66832.0,66831.0,0.20173146]
[1721545010451,0.005,66832.0,66831.0,0.20173146]
[1721545010624,0.005,66832.0,66831.0,0.68054946]
[1721545010884,0.005,66832.0,66831.0,0.91995846]
[1721545012343,0.005,66832.0,66831.0,0.68054946]
[1721545014481,0.05346067,66832.0,66831.0,0.15725546]
[1721545014684,0.05430067,66832.0,66831.0,0.15725546]
[1721545015537,0.00584,66832.0,66831.0,0.22535546]
[1721545016153,0.00584,66832.0,66831.0,0.46476446]
[1721545021337,0.00584,66832.0,66831.0,0.77913191]
[1721545021747,0.00584,66832.0,66831.0,0.70417346]
[1721545022367,0.00584,66832.0,66831.0,0.63607346]
[1721545024211,0.00584,66832.0,66831.0,0.03766251]
[1721545024212,0.19370067,66832.0,66831.0,0.03766251]
[1721545024504,0.19370067,66832.0,66831.0,0.1539162]
[1721545025418,0.19370067,66832.0,66831.0,0.27817288]
[1721545025826,0.14524,66832.0,66831.0,0.27817288]
[1721545026108,0.19370067,66832.0,66831.0,0.27817288]
[1721545026343,0.19370067,66832.0,66831.0,0.2747417]
[1721545027976,0.19370067,66832.0,66831.0,0.15048502]
[1721545028119,0.19370067,66832.0,66831.0,0.27474175]
[1721545028962,0.19370067,66832.0,66831.0,0.15503775]
[1721545030087,0.13330067,66832.0,66831.0,0.15503775]
[1721545031122,0.13330067,66832.0,66831.0,0.03078102]
[1721545031339,0.13330067,66832.0,66831.0,0.15503776]
[1721545032153,0.19580067,66832.0,66831.0,0.15503776]
[1721545032363,0.19580067,66832.0,66831.0,0.1584666]
[1721545034415,0.19580067,66832.0,66831.0,0.15846678]
[1721545036970,0.14734,66832.0,66831.0,0.15846678]
[1721545037102,0.19580067,66832.0,66831.0,0.15846678]
[1721545037655,0.14734,66832.0,66831.0,0.15846637]
[1721545038059,0.19580067,66832.0,66831.0,0.15846637]
[1721545038242,0.14734,66832.0,66831.0,0.15846637]
[1721545040966,0.19580067,66832.0,66831.0,0.15846637]
[1721545041617,0.31550367,66832.0,66831.0,0.15846637]
[1721545041855,0.31550367,66832.0,66831.0,0.12518051]
[1721545041856,1.01277556,66832.0,66831.0,0.12518051]